bitfinex-derivatives/quotes_SOLF0:USTF0_20250312
["timestamp","ask_amount","ask_price","bid_price","bid_amount"]
[1741809029938,8.0249,124.64,124.6,8.0267]
[1741809030139,8.0249,124.64,124.57,32.22]
[1741809030438,8.0249,124.64,124.6,8.0266]
[1741809030634,0.0553194,124.62,124.6,8.0266]
[1741809031043,0.0553194,124.62,124.59,0.05904158]
[1741809031545,0.0553194,124.62,124.61,8.0264]
[1741809033944,0.0553194,124.62,124.59,0.05904158]
[1741809035648,0.0553194,124.62,124.61,8.0264]
[1741809036341,0.0553194,124.62,124.6,40.1868]
[1741809036546,0.0553194,124.62,124.6,8.0268]
[1741809036848,0.0553194,124.62,124.59,0.05904158]
[1741809038345,0.0553194,124.62,124.61,8.0264]
[1741809039145,1.94e-05,124.62,124.61,8.0264]
[1741809039347,8.0224,124.68,124.61,33.40283074]
[1741809039647,6.9738,124.69,124.61,33.40283074]
[1741809039853,6.9738,124.69,124.67,8.0221]
[1741809040148,6.9738,124.69,124.64,32.14]
[1741809040351,0.05474699,124.68,124.66,8.0228]
[1741809040653,0.05474699,124.68,124.65,0.05510029]
[1741809040840,0.05474699,124.68,124.61,33.40283074]
[1741809040841,8.0232,124.66,124.61,33.40283074]
[1741809041046,32.3,124.68,124.6,32.3]
[1741809041340,3.7078,124.67,124.6,32.3]
[1741809041545,3.7078,124.67,124.61,8.0261]
[1741809041741,3.7078,124.67,124.57,65.70283074]
[1741809041943,33.40283074,124.64,124.54,7.1597]
[1741809042144,35.75744045,124.63,124.54,3.7427]
[1741809042349,35.7046,124.63,124.54,3.7427]
[1741809042550,3.6585,124.62,124.54,3.7427]
[1741809042752,8.0282,124.59,124.55,8.0299]
[1741809043152,32.3,124.6,124.54,8.0306]
[1741809043454,0.05154683,124.58,124.54,8.0306]
[1741809044157,8.08014683,124.58,124.54,8.0306]
[1741809044752,0.05154683,124.58,124.53,240.58]
[1741809044952,0.05154683,124.58,124.53,273.98283074]
[1741809045558,0.05154683,124.58,124.57,8.029]
[1741809046057,0.05154683,124.58,124.55,32.24]
[1741809046654,8.08024683,124.58,124.55,32.24]
[1741809046850,0.05154683,124.58,124.55,32.24]
[1741809047257,8.08024683,124.58,124.55,32.24]
[1741809047957,8.0292,124.57,124.54,8.0306]
[1741809048152,8.0292,124.57,124.52,32.24]
[1741809048357,3.6872,124.61,124.52,32.24]
[1741809048557,0.05686067,124.56,124.52,32.24]
[1741809048958,0.05686067,124.56,124.53,8.0315]
[1741809049458,0.05686067,124.56,124.55,8.0303]
[1741809049861,0.05686067,124.56,124.52,32.2]
[1741809050254,0.05686067,124.56,124.52,53.08714566]
[1741809050658,0.05686067,124.56,124.5,20.88714566]
[1741809051166,3.51966067,124.56,124.48,20.88714566]
[1741809051465,6.9035,124.56,124.48,20.88714566]
[1741809051661,8.0324,124.52,124.49,8.0338]
[1741809051862,8.0324,124.52,124.48,20.88714566]
[1741809052261,8.0324,124.52,124.49,8.034]
[1741809052460,0.05654234,124.53,124.47,276.6878]
[1741809052763,0.05654234,124.53,124.51,8.0323]
[1741809052969,0.05654234,124.53,124.47,276.6878]
[1741809053266,0.05654234,124.53,124.52,8.0322]
[1741809055264,32.1,124.59,124.52,33.44429601]
[1741809055662,32.1,124.59,124.53,32.1]
[1741809056063,32.1,124.59,124.56,8.0293]
[1741809056263,32.1,124.59,124.53,32.1]
[1741809056558,32.15836806,124.59,124.56,0.05812144]
[1741809057568,0.05836806,124.59,124.56,0.05812144]
[1741809059362,0.05836806,124.59,124.57,8.0289]
[1741809059962,0.05836806,124.59,124.56,0.05812144]
[1741809060863,0.05836806,124.59,124.58,8.0284]
[1741809061063,0.05836806,124.59,124.56,0.05812144]
[1741809062273,31.98,124.58,124.51,31.98]
[1741809062568,8.0302,124.56,124.51,31.98]
[1741809062962,31.98,124.58,124.51,31.98]
[1741809063370,0.05771097,124.56,124.51,31.98]
[1741809063572,8.08771097,124.56,124.53,8.0313]
[1741809064470,0.05771097,124.56,124.54,8.0304]
[1741809066866,0.05771097,124.56,124.51,31.98]
[1741809067080,0.05771097,124.56,124.48,39.0315]
[1741809067265,31.98,124.58,124.48,39.0315]
[1741809067468,0.05726945,124.53,124.48,35.365]
[1741809068066,0.05726945,124.53,124.51,8.0328]
[1741809068368,0.05726945,124.53,124.48,35.365]
[1741809068571,8.08916945,124.53,124.5,8.0331]
[1741809068869,0.05726945,124.53,124.45,37.14319601]
[1741809069077,65.32429601,124.55,124.45,31.88]
[1741809069372,0.05875656,124.5,124.44,31.9]
[1741809070772,0.05875656,124.5,124.42,7.0476]
[1741809070977,31.88,124.49,124.42,35.4019]
[1741809071173,33.44429601,124.51,124.42,3.5219]
[1741809071174,0.06079132,124.47,124.42,3.5219]
[1741809072177,0.06079132,124.47,124.45,8.0364]
[1741809072377,0.06079132,124.47,124.42,3.5219]
[1741809073278,0.06079132,124.47,124.46,8.0361]
[1741809074081,0.06079132,124.47,124.42,3.5219]
[1741809074280,0.06079132,124.47,124.42,24.44320708]
[1741809074781,0.06079132,124.47,124.46,8.0361]
[1741809076277,7.0896,124.55,124.46,20.92130708]
[1741809076477,39.9114,124.54,124.48,20.92130708]
[1741809076777,31.88,124.54,124.52,8.0322]
[1741809077477,31.94018119,124.54,124.52,8.084587]
[1741809078179,31.94018119,124.54,124.52,0.052387]
[1741809078982,0.06018119,124.54,124.53,8.0316]
[1741809080880,43.5309,124.6,124.53,8.0316]
[1741809081078,35.5035,124.6,124.57,8.0284]
[1741809081379,3.6235,124.6,124.53,31.88]
[1741809082277,0.05906073,124.58,124.55,0.05707103]
[1741809082684,0.05906073,124.58,124.57,8.029]
[1741809083481,8.0294,124.57,124.55,0.05707103]
[1741809083787,0.05906073,124.58,124.55,0.05707103]
[1741809084586,8.0291,124.57,124.55,0.05707103]
[1741809084984,0.05906073,124.58,124.55,0.05707103]
[1741809085780,8.08766073,124.58,124.55,0.05707103]
[1741809086588,0.05906073,124.58,124.55,0.05707103]
[1741809086981,0.05906073,124.58,124.48,32.04]
[1741809086982,32.04,124.57,124.48,32.04]
[1741809087183,65.46090285,124.57,124.48,32.04]
[1741809087589,8.0314,124.54,124.5,8.0332]
[1741809087984,0.05546765,124.53,124.51,0.06174713]
[1741809088886,0.05546765,124.53,124.52,8.0322]
[1741809089081,8.0295,124.57,124.51,32.08174713]
[1741809089393,32.02,124.58,124.51,32.08174713]
[1741809089786,33.42090285,124.57,124.51,0.06174713]
[1741809089987,8.0322,124.52,124.51,0.06174713]
[1741809090187,32.04,124.52,124.43,274.6348]
[1741809090390,36.12880285,124.51,124.43,32.04]
[1741809090693,5.588,124.51,124.43,32.04]
[1741809091084,8.0361,124.46,124.43,32.04]
[1741809091487,0.06044582,124.48,124.43,0.06063393]
[1741809092089,0.06044582,124.48,124.43,8.09863393]
[1741809092698,8.09564582,124.48,124.43,8.09863393]
[1741809092892,0.06044582,124.48,124.43,8.09863393]
[1741809093788,0.06044582,124.48,124.43,0.06063393]
[1741809094392,0.06044582,124.48,124.43,8.09823393]
[1741809094591,0.06044582,124.48,124.43,0.06063393]
[1741809094992,0.06044582,124.48,124.44,33.42090285]
[1741809095190,0.06044582,124.48,124.47,8.0355]
[1741809095392,37.6031,124.54,124.45,33.7626]
[1741809095985,33.42090285,124.53,124.45,32.02]
[1741809096190,37.6031,124.54,124.45,32.02]
[1741809096406,0.05972415,124.51,124.48,0.05825543]
[1741809098396,0.05972415,124.51,124.48,8.09285543]
[1741809098598,0.05972415,124.51,124.48,0.05825543]
[1741809099294,0.05972415,124.51,124.5,8.0335]
[1741809099793,2.6754,124.56,124.48,65.41915828]
[1741809099995,2.6754,124.56,124.48,65.36090285]
[1741809100298,31.94,124.57,124.48,67.10080285]
[1741809100801,0.0547091,124.54,124.51,8.09349301]
[1741809101300,0.0547091,124.54,124.53,8.0316]
[1741809101602,0.0547091,124.54,124.51,0.06089301]
[1741809102999,0.0547091,124.54,124.52,8.0319]
[1741809103196,0.0547091,124.54,124.51,0.06089301]
[1741809103596,0.0547091,124.54,124.52,8.0318]
[1741809103902,0.0547091,124.54,124.51,0.06089301]
[1741809104101,0.0547091,124.54,124.53,8.0316]
[1741809104305,0.0547091,124.54,124.51,0.06089301]
[1741809104605,0.0547091,124.54,124.53,8.0316]
[1741809106500,0.0547091,124.54,124.52,8.032]
[1741809107298,0.0547091,124.54,124.53,8.0316]
[1741809110306,2.6688,124.59,124.51,31.94089301]
[1741809110506,31.88,124.61,124.51,33.6178]
[1741809110707,8.0278,124.59,124.51,33.6178]
[1741809110905,8.0278,124.59,124.56,8.0293]
[1741809111497,0.05981422,124.59,124.56,0.05563427]
[1741809112400,0.05981422,124.59,124.57,31.88]
[1741809112907,0.05981422,124.59,124.58,8.0284]
[1741809114002,31.88,124.67,124.61,8.0263]
[1741809114206,2.6993,124.66,124.6,31.88]
[1741809114905,34.5793,124.66,124.6,31.88]
[1741809115106,0.05324102,124.64,124.62,0.05432174]
[1741809117613,0.05324102,124.64,124.62,8.07982174]
[1741809117812,0.05324102,124.64,124.62,0.05432174]
[1741809118512,8.07804102,124.64,124.62,0.05432174]
[1741809118806,0.05324102,124.64,124.62,0.05432174]
[1741809120122,0.05324102,124.64,124.62,8.07992174]
[1741809120709,0.05324102,124.64,124.63,8.0251]
[1741809121314,4.102e-05,124.64,124.63,39.8851]
[1741809122316,4.102e-05,124.64,124.63,60.73561945]
[1741809123515,8.0197,124.72,124.68,8.0218]
[1741809123723,8.0189,124.73,124.67,31.86]
[1741809123913,8.0189,124.73,124.68,31.86]
[1741809124115,8.0197,124.72,124.68,31.86]
[1741809124316,2.8442,124.74,124.68,31.86]
[1741809124628,2.7247,124.75,124.71,8.0194]
[1741809124826,2.7247,124.75,124.71,31.86]
[1741809124827,0.05342519,124.72,124.71,31.86]
[1741809125317,0.05342519,124.72,124.71,39.88]
[1741809126318,0.05342519,124.72,124.71,31.86]
[1741809127028,0.05342519,124.72,124.71,39.88]
[1741809128217,2.519e-05,124.72,124.71,39.88]
[1741809128518,2.519e-05,124.72,124.71,42.5431]
[1741809130024,2.519e-05,124.72,124.71,39.88]
[1741809131326,2.519e-05,124.72,124.7,0.0519866]
[1741809132317,8.01952519,124.72,124.7,0.0519866]
[1741809132619,2.519e-05,124.72,124.7,0.0519866]
[1741809132819,2.519e-05,124.72,124.7,8.0722866]
[1741809133227,2.519e-05,124.72,124.7,0.0519866]
[1741809133524,2.519e-05,124.72,124.62,33.32518468]
[1741809133724,5.37,124.73,124.64,31.84]
[1741809133926,8.0196,124.72,124.64,65.16518468]
[1741809134129,2.6537,124.73,124.66,33.32518468]
[1741809134316,2.6537,124.73,124.7,8.0202]
[1741809134517,8.0187,124.74,124.7,39.8602]
[1741809134717,0.05216582,124.73,124.7,39.92001137]
[1741809134917,0.05216582,124.73,124.7,0.05981137]
[1741809135422,0.05216582,124.73,124.66,39.8631]
[1741809135423,2.76846582,124.73,124.66,39.8631]
[1741809135625,8.0214,124.69,124.66,39.8631]
[1741809135824,31.84,124.72,124.66,31.84]
[1741809136025,8.0217,124.69,124.66,39.8631]
[1741809136227,2.6537,124.71,124.66,31.84]
[1741809136529,0.05956029,124.7,124.67,0.05765342]
[1741809136729,8.0219,124.68,124.67,0.05765342]
[1741809136930,0.05956029,124.7,124.67,0.05765342]
[1741809137229,8.0219,124.68,124.67,0.05765342]
[1741809137424,0.05956029,124.7,124.67,0.05765342]
[1741809138224,8.0219,124.68,124.67,0.05765342]
[1741809138429,33.38474497,124.7,124.6,34.99158468]
[1741809138619,33.38474497,124.7,124.6,31.84]
[1741809138620,31.84,124.69,124.6,31.84]
[1741809138828,8.0253,124.63,124.6,39.8668]
[1741809139126,31.84,124.63,124.56,122.39230788]
[1741809139326,2.8603,124.62,124.56,122.39230788]
[1741809139525,0.05963098,124.61,124.58,0.0588276]
[1741809139725,31.84,124.6,124.52,31.84]
[1741809140232,31.84,124.6,124.55,8.0299]
[1741809140430,31.84,124.6,124.52,31.84]
[1741809140831,0.05656247,124.57,124.55,8.08378174]
[1741809141024,0.05656247,124.57,124.55,0.05398174]
[1741809142936,0.05656247,124.57,124.56,8.0297]
[1741809143129,0.05656247,124.57,124.55,0.05398174]
[1741809144036,0.05656247,124.57,124.56,8.0297]
[1741809144728,6.247e-05,124.57,124.56,8.0297]
[1741809145126,5.6554,124.66,124.63,8.025]
[1741809145832,5.6554,124.66,124.59,31.86]
[1741809146437,0.05681085,124.64,124.61,0.05748959]
[1741809147026,0.05681085,124.64,124.63,8.0251]
[1741809147837,1.085e-05,124.64,124.63,8.0251]
[1741809149435,1.085e-05,124.64,124.63,10.8639]
[1741809150831,1.085e-05,124.64,124.63,18.8839]
[1741809151037,2.8903,124.7,124.66,8.0229]
[1741809151238,3.0036,124.73,124.66,39.8629]
[1741809151433,5.9112,124.73,124.66,31.84]
[1741809151934,8.9048,124.73,124.66,31.84]
[1741809152133,0.05842739,124.71,124.68,0.05220677]
[1741809152841,31.89842739,124.71,124.63,31.84]
[1741809153034,31.84,124.71,124.63,31.84]
[1741809153735,8.0207,124.7,124.64,8.0241]
[1741809153937,0.05971954,124.68,124.66,0.05648605]
[1741809154932,8.0226,124.67,124.66,0.05648605]
[1741809155133,10.8597,124.67,124.66,0.05648605]
[1741809155333,2.8371,124.67,124.61,31.84]
[1741809155636,5.88,124.67,124.61,31.84]
[1741809156038,2.8371,124.67,124.61,31.84]
[1741809156233,31.84,124.71,124.61,31.84]
[1741809156434,0.05688958,124.65,124.64,8.0242]
[1741809156633,8.0213,124.69,124.64,8.0242]
[1741809156828,0.05693721,124.66,124.63,0.05101905]
[1741809157027,0.05693721,124.66,124.62,8.0254]
[1741809157233,0.05693721,124.66,124.63,0.05552064]
[1741809157433,0.05693721,124.66,124.64,31.84]
[1741809157632,0.05693721,124.66,124.65,8.0239]
[1741809158640,0.05693721,124.66,124.64,31.84]
[1741809159043,0.05693721,124.66,124.64,39.8644]
[1741809159240,0.05693721,124.66,124.64,31.84]
[1741809159641,0.05693721,124.66,124.64,39.8642]
[1741809159841,0.05693721,124.66,124.64,31.84]
[1741809160144,0.05693721,124.66,124.65,8.0239]
[1741809160343,0.05693721,124.66,124.64,31.84]
[1741809162548,0.05693721,124.66,124.63,0.05552064]
[1741809163347,8.0245,124.65,124.63,0.05552064]
[1741809163545,0.05693721,124.66,124.63,0.05552064]
[1741809163745,2.8261,124.65,124.63,0.05552064]
[1741809164754,2.8261,124.65,124.63,8.08032064]
[1741809165552,2.8261,124.65,124.63,0.05552064]
[1741809166149,8.0245,124.64,124.63,0.05552064]
[1741809166451,2.8261,124.65,124.63,0.05552064]
[1741809167050,0.05693721,124.66,124.63,0.05552064]
[1741809167251,8.024,124.65,124.63,0.05552064]
[1741809167452,0.05693721,124.66,124.63,0.05552064]
[1741809167952,0.05693721,124.66,124.64,8.0245]
[1741809168151,0.05693721,124.66,124.63,0.05552064]
[1741809168854,0.05693721,124.66,124.63,20.91756321]
[1741809169055,3.721e-05,124.66,124.64,31.84]
[1741809169255,3.721e-05,124.66,124.65,20.86204257]
[1741809169457,3.721e-05,124.66,124.65,28.88594257]
[1741809172459,3.721e-05,124.66,124.65,8.0239]
[1741809176360,3.721e-05,124.66,124.65,28.88594257]
[1741809178065,9.0014,124.73,124.71,8.0199]
[1741809178263,9.0014,124.73,124.67,52.70204257]
[1741809178467,9.0014,124.73,124.68,31.84]
[1741809179172,9.0014,124.73,124.69,0.05409439]
[1741809179173,0.0589114,124.72,124.69,0.05409439]
[1741809179372,0.0589114,124.72,124.71,8.02]
[1741809181281,0.0589114,124.72,124.7,8.0203]
[1741809181572,0.0589114,124.72,124.69,0.05409439]
[1741809181973,0.0589114,124.72,124.7,8.0201]
[1741809182276,0.0589114,124.72,124.69,0.05409439]
[1741809183572,8.0789114,124.72,124.69,0.05409439]
[1741809183972,0.0589114,124.72,124.69,0.05409439]
[1741809184472,0.0589114,124.72,124.7,8.0205]
[1741809184875,0.0589114,124.72,124.7,8.0203]
[1741809185175,0.0589114,124.72,124.69,0.05409439]
[1741809185372,0.0589114,124.72,124.71,8.02]
[1741809187174,0.0589114,124.72,124.69,20.91613696]
[1741809187175,0.0589114,124.72,124.7,8.0203]
[1741809187371,0.0589114,124.72,124.69,0.05409439]
[1741809187778,0.0589114,124.72,124.7,8.0203]
[1741809188274,8.0206,124.71,124.69,0.05409439]
[1741809188979,11.1302114,124.72,124.69,8.07539439]
[1741809189881,3.1106114,124.72,124.69,0.05409439]
[1741809190081,3.1106114,124.72,124.63,20.86204257]
[1741809190375,8.021,124.7,124.67,8.0225]
[1741809190977,8.0201,124.71,124.68,8.0219]
[1741809191173,3.0517,124.72,124.65,20.86204257]
[1741809191374,0.05503402,124.71,124.68,0.0511841]
[1741809191574,8.07563402,124.71,124.68,0.0511841]
[1741809191982,8.07563402,124.71,124.68,8.0730841]
[1741809192175,8.07563402,124.71,124.68,0.0511841]
[1741809192377,8.0207,124.7,124.68,0.0511841]
[1741809193481,8.07533402,124.71,124.68,0.0511841]
[1741809193683,8.07533402,124.71,124.68,8.0727841]
[1741809193887,0.05503402,124.71,124.68,0.0511841]
[1741809194289,0.05503402,124.71,124.7,8.0206]
[1741809197784,3.402e-05,124.71,124.7,39.8406]
[1741809197985,17.44709321,124.8,124.7,60.70204257]
[1741809198282,17.44709321,124.8,124.75,20.86204257]
[1741809198480,50.07335985,124.82,124.78,8.0151]
[1741809198681,50.07335985,124.82,124.76,31.82]
[1741809199079,0.05874767,124.8,124.78,0.05459015]
[1741809199283,20.86204257,124.8,124.71,20.86204257]
[1741809199786,8.0156,124.78,124.75,8.0173]
[1741809199979,20.86204257,124.8,124.72,31.82]
[1741809200175,31.82,124.81,124.73,20.86204257]
[1741809200385,0.05915183,124.77,124.75,0.05309169]
[1741809202888,0.05915183,124.77,124.76,8.0168]
[1741809204780,0.05915183,124.77,124.75,0.05309169]
[1741809205082,0.05915183,124.77,124.75,8.07039169]
[1741809205282,0.05915183,124.77,124.75,0.05309169]
[1741809206287,8.07565183,124.77,124.75,0.05309169]
[1741809206593,8.07565183,124.77,124.73,31.8]
[1741809206594,0.05915183,124.77,124.71,52.66204257]
[1741809206893,2.8515,124.76,124.71,31.8]
[1741809207485,2.8515,124.76,124.74,8.0177]
[1741809207897,2.8515,124.76,124.72,0.05208495]
[1741809208086,0.05915183,124.77,124.73,20.86204257]
[1741809208284,0.05915183,124.77,124.74,31.8]
[1741809208490,0.05915183,124.77,124.76,8.0168]
[1741809208491,5.183e-05,124.77,124.76,8.0168]
[1741809210797,2.8515,124.82,124.81,8.0136]
[1741809211593,20.86204257,124.88,124.82,8.0124]
[1741809211789,8.0107,124.86,124.84,0.05632743]
[1741809212088,8.07080374,124.86,124.84,0.05632743]
[1741809212701,8.011,124.85,124.84,0.05632743]
[1741809213399,8.07080374,124.86,124.84,0.05632743]
[1741809214798,8.011,124.85,124.84,0.05632743]
[1741809215206,0.06010374,124.86,124.84,0.05632743]
[1741809215498,8.07060374,124.86,124.84,0.05632743]
[1741809215700,0.06010374,124.86,124.84,0.05632743]
[1741809215901,8.07110374,124.86,124.84,0.05632743]
[1741809216301,0.06010374,124.86,124.84,0.05632743]
[1741809216502,8.011,124.85,124.84,0.05632743]
[1741809217599,8.0131,124.82,124.78,52.64204257]
[1741809217895,31.78,124.85,124.78,31.78]
[1741809218101,8.0143,124.8,124.78,31.78]
[1741809218302,31.78,124.85,124.78,31.78]
[1741809218604,0.06085621,124.83,124.8,0.05808926]
[1741809219500,0.06085621,124.83,124.8,8.07178926]
[1741809219801,8.07355621,124.83,124.8,8.07178926]
[1741809220010,0.06085621,124.83,124.8,0.05808926]
[1741809220307,0.06085621,124.83,124.82,8.0129]
[1741809221903,0.06085621,124.83,124.81,8.0133]
[1741809222404,0.06085621,124.83,124.82,8.0129]
[1741809222909,5.621e-05,124.83,124.82,28.87494257]
[1741809223307,5.621e-05,124.83,124.82,8.0129]
[1741809224203,5.621e-05,124.83,124.82,28.87494257]
[1741809227319,5.621e-05,124.83,124.82,8.0129]
[1741809228108,5.621e-05,124.83,124.81,2.9822]
[1741809228310,5.621e-05,124.83,124.82,8.0129]
[1741809228916,5.621e-05,124.83,124.82,28.87494257]
[1741809230316,8.5935,124.91,124.82,269.24204257]
[1741809230521,5.6295,124.91,124.86,20.86204257]
[1741809230717,5.6295,124.91,124.86,52.62204257]
[1741809231111,2.7816,124.91,124.86,52.62204257]
[1741809231317,8.0055,124.94,124.86,52.62204257]
[1741809231623,0.05999164,124.9,124.89,8.0084]
[1741809231817,10.1478,124.94,124.86,52.62204257]
[1741809232120,0.05260403,124.91,124.88,0.05837762]
[1741809232317,0.05260403,124.91,124.88,20.92042019]
[1741809232518,2.1422,124.94,124.88,20.92042019]
[1741809232519,2.1422,124.94,124.9,20.86204257]
[1741809232824,2.1422,124.94,124.93,8.0059]
[1741809233122,2.1422,124.94,124.9,20.86204257]
[1741809233623,0.05395942,124.93,124.92,8.0059]
[1741809234119,0.05395942,124.93,124.91,0.05170687]
[1741809234910,0.05395942,124.93,124.92,8.0065]
[1741809235413,0.05395942,124.93,124.91,8.05850687]
[1741809236224,0.05395942,124.93,124.91,0.05170687]
[1741809236916,0.05395942,124.93,124.92,8.0065]
[1741809237317,0.05395942,124.93,124.91,8.05880687]
[1741809237813,0.05395942,124.93,124.91,0.05170687]
[1741809238017,0.05395942,124.93,124.92,8.0065]
[1741809240223,0.05395942,124.93,124.91,0.05170687]
[1741809240822,0.05395942,124.93,124.92,8.0065]
[1741809243027,0.05395942,124.93,124.91,8.05850687]
[1741809243327,0.05395942,124.93,124.91,0.05170687]
[1741809243725,0.05395942,124.93,124.92,8.0065]
[1741809244325,0.05395942,124.93,124.92,39.7465]
[1741809245924,5.942e-05,124.93,124.92,60.60854257]
[1741809248230,5.942e-05,124.93,124.92,39.7465]
[1741809250228,0.28613,125.0,124.92,73.46408514]
[1741809250434,0.28613,125.0,124.93,20.86204257]
[1741809250735,0.28613,125.0,124.95,20.86204257]
[1741809251029,8.28773,125.0,124.95,31.74]
[1741809251228,0.28613,125.0,124.96,20.86204257]
[1741809251422,0.0557139,124.99,124.96,20.91982182]
[1741809251622,0.0557139,124.99,124.96,0.05777925]
[1741809252234,0.0557139,124.99,124.96,20.91982182]
[1741809252933,0.0557139,124.99,124.97,8.003]
[1741809253230,0.0557139,124.99,124.96,20.91982182]
[1741809253634,0.0557139,124.99,124.97,8.0029]
[1741809254034,0.0557139,124.99,124.96,0.05777925]
[1741809255031,8.0033,124.97,124.96,0.05777925]
[1741809255231,0.0557139,124.99,124.96,0.05777925]
[1741809256936,31.72,124.98,124.91,20.86204257]
[1741809257132,31.72,124.98,124.93,20.86204257]
[1741809257333,8.0024,124.99,124.93,52.58204257]
[1741809257634,0.28613,125.0,124.95,8.0042]
[1741809258029,0.05567311,124.99,124.96,0.06044785]
[1741809258236,0.05567311,124.99,124.93,52.58204257]
[1741809258635,8.0029,124.98,124.95,8.0042]
[1741809258836,0.05567311,124.99,124.93,52.58204257]
[1741809259432,0.05567311,124.99,124.95,0.05341776]
[1741809259837,8.0032,124.98,124.95,0.05341776]
[1741809260143,0.05567311,124.99,124.95,0.05341776]
[1741809260343,8.003,124.98,124.95,21.33774339]
[1741809261043,8.003,124.98,124.96,8.0039]
[1741809261240,0.05567311,124.99,124.95,13.33354339]
[1741809261737,0.05567311,124.99,124.97,8.0032]
[1741809261943,0.05567311,124.99,124.97,13.28012563]
[1741809262343,0.05567311,124.99,124.98,21.28282563]
[1741809262643,0.05567311,124.99,124.98,8.0027]
[1741809263837,0.05567311,124.99,124.98,21.28282563]
[1741809264042,0.05567311,124.99,124.97,8.0032]
[1741809264242,0.05567311,124.99,124.95,13.33354339]
[1741809265243,13.28012563,124.98,124.95,0.05341776]
[1741809265543,31.77567311,124.99,124.95,0.05341776]
[1741809266142,31.77567311,124.99,124.96,13.28012563]
[1741809266342,31.77567311,124.99,124.95,0.05341776]
[1741809266744,8.0031,124.98,124.95,8.05771776]
[1741809267145,31.77567311,124.99,124.95,0.05341776]
[1741809268543,8.003,124.98,124.95,8.05771776]
[1741809268849,31.77567311,124.99,124.95,0.05341776]
[1741809269049,8.0027,124.98,124.95,8.05771776]
[1741809269249,31.77567311,124.99,124.95,8.05771776]
[1741809269745,8.004,124.96,124.95,0.05341776]
[1741809269946,8.004,124.96,124.92,20.74779697]
[1741809270242,8.006,124.93,124.91,8.0068]
[1741809270446,2.0234,124.95,124.9,292.62779697]
[1741809270950,10.0283,124.95,124.92,8.0062]
[1741809271141,0.05920582,124.94,124.92,8.0062]
[1741809271852,0.05920582,124.94,124.92,8.006]
[1741809272352,8.06450582,124.94,124.91,8.05800957]
[1741809272545,0.05920582,124.94,124.91,0.05110957]
[1741809272945,8.0062,124.93,124.91,0.05110957]
[1741809273146,0.05920582,124.94,124.91,0.05110957]
[1741809275051,8.006,124.93,124.91,0.05110957]
[1741809275640,8.06480582,124.94,124.91,0.05110957]
[1741809276048,0.05920582,124.94,124.91,0.05110957]
[1741809276250,0.05920582,124.94,124.92,8.0065]
[1741809276847,0.05920582,124.94,124.91,0.05110957]
[1741809277044,0.05920582,124.94,124.92,20.74779697]
[1741809277254,0.05920582,124.94,124.91,0.05110957]
[1741809277449,0.05920582,124.94,124.92,8.0063]
[1741809277753,0.05920582,124.94,124.91,0.05110957]
[1741809277950,0.05920582,124.94,124.92,8.006]
[1741809278152,0.05920582,124.94,124.91,0.05110957]
[1741809278450,0.05920582,124.94,124.92,8.0065]
[1741809279150,0.05920582,124.94,124.93,8.0059]
[1741809279550,0.05920582,124.94,124.91,0.05110957]
[1741809280353,5.82e-06,124.94,124.92,73.21559394]
[1741809280557,0.28613,125.0,124.92,313.35559394]
[1741809280854,0.28613,125.0,124.97,20.74779697]
[1741809281247,0.28613,125.0,124.99,28.74979697]
[1741809281442,0.28613,125.0,124.99,60.46979697]
[1741809281645,109.29355674,125.02,124.99,52.46779697]
[1741809281849,131.10199969,125.03,125.02,8.0001]
[1741809282049,131.10199969,125.03,125.02,31.72]
[1741809282448,131.10199969,125.03,125.02,39.7201]
[1741809282956,131.10199969,125.03,125.02,31.72]
[1741809283155,131.10199969,125.03,125.01,8.06176331]
[1741809283452,131.10199969,125.03,125.01,0.06126331]
[1741809283852,131.10199969,125.03,125.01,20.80906028]
[1741809284055,131.10199969,125.03,125.02,8.0001]
[1741809284250,131.10199969,125.03,125.01,20.80906028]
[1741809284558,131.10199969,125.03,125.01,28.80946028]
[1741809284859,0.06070728,125.04,125.01,20.80906028]
[1741809286356,0.06070728,125.04,125.02,39.7797]
[1741809286558,0.06070728,125.04,125.03,20.74779697]
[1741809286752,0.30478,125.07,125.03,20.74779697]
[1741809286962,0.30478,125.07,125.06,28.74539697]
[1741809287266,0.30478,125.07,125.06,60.54539697]
[1741809287858,0.30478,125.07,125.06,39.7976]